bitfinex/quotes_ETHUSD_20240621
["timestamp","ask_amount","ask_price","bid_price","bid_amount"]
[1718941118281,4.94123852,3514.8,3513.8,3.0]
[1718941118477,4.0925,3514.8,3513.8,3.0]
[1718941118694,1.714,3514.6,3513.8,3.0]
[1718941119120,2.20691693,3514.6,3513.8,3.0]
[1718941119312,2.75258865,3514.6,3513.8,3.0]
[1718941119481,0.49291693,3514.5,3513.8,3.0]
[1718941119690,0.49291802,3514.5,3513.8,3.0]
[1718941121485,2.25967172,3514.6,3513.8,3.0]
[1718941121683,0.49291973,3514.5,3513.8,3.0]
[1718941121996,2.76931977,3514.5,3513.8,3.0]
[1718941122196,0.49291973,3514.4,3513.8,3.0]
[1718941122413,1.714,3514.5,3513.8,3.0]
[1718941122629,2.20691973,3514.5,3513.8,3.0]
[1718941122932,0.49291973,3514.4,3513.8,3.0]
[1718941125929,2.2069201,3514.2,3513.8,3.0]
[1718941127199,0.4929201,3514.1,3513.8,3.0]
[1718941127710,2.2069201,3514.2,3513.4,2.3397]
[1718941128031,0.49296732,3514.1,3513.4,2.3397]
[1718941128241,0.49296732,3514.0,3513.4,2.3397]
[1718941128392,1.714,3514.5,3513.5,0.4557503]
[1718941128393,0.49296732,3514.4,3513.5,0.4557503]
[1718941128722,1.26464659,3514.3,3513.5,3.0]
[1718941128892,0.49296732,3514.2,3513.4,2.3397]
[1718941129092,0.49296732,3514.1,3513.4,2.3397]
[1718941129301,0.49296732,3514.0,3513.4,2.3397]
[1718941129489,0.66436732,3514.3,3513.4,2.3397]
[1718941129690,1.26476148,3514.2,3513.4,2.3397]
[1718941129901,1.26476148,3514.1,3513.4,2.3397]
[1718941130190,0.49296732,3514.0,3513.4,2.3397]
[1718941130404,1.714,3514.4,3513.4,2.3397]
[1718941130605,1.48545564,3514.3,3513.4,2.3397]
[1718941130805,1.26475891,3514.2,3513.4,2.3397]
[1718941131008,0.77179159,3514.1,3513.4,2.3397]
[1718941131305,1.26474132,3514.0,3513.4,2.3397]
[1718941131506,0.49294973,3514.2,3513.4,3.2167]
[1718941131706,1.714,3514.4,3513.5,3.0]
[1718941131707,3.65235528,3514.1,3513.5,3.0]
[1718941132026,2.97855528,3514.0,3513.2,3.0]
[1718941132194,1.26455528,3513.9,3513.2,3.0]
[1718941132390,0.877,3513.7,3513.2,3.0]
[1718941132617,2.3878,3513.5,3512.8,3.0]
[1718941132835,1.26455528,3513.4,3512.8,3.0]
[1718941133005,0.77160555,3513.3,3512.7,8.247]
[1718941133201,1.26455528,3513.3,3512.7,8.247]
[1718941133398,0.77160555,3513.2,3512.7,7.37]
[1718941133631,0.49294973,3513.4,3512.7,7.37]
[1718941133845,0.77120685,3513.3,3512.7,7.37]
[1718941134218,0.77120685,3513.3,3512.8,3.0]
[1718941135027,2.48520685,3513.3,3512.8,3.0]
[1718941135333,1.26427396,3513.2,3512.4,2.331]
[1718941135491,0.77120685,3513.1,3512.4,2.331]
[1718941135690,0.77120685,3513.1,3512.1,5.4269]
[1718941137329,2.24231869,3513.3,3512.1,5.4269]
[1718941137330,0.77120685,3513.0,3512.1,5.4269]
[1718941137495,0.77120685,3512.9,3512.2,2.50769]
[1718941137695,0.77120685,3512.8,3512.3,3.0]
[1718941137924,0.49309824,3513.2,3512.3,3.0]
[1718941138088,0.77061001,3513.1,3512.3,3.0]
[1718941138288,0.77061001,3513.1,3512.4,0.793459]
[1718941138487,0.77061001,3513.0,3512.4,0.793459]
[1718941138716,0.77061001,3512.9,3512.4,0.793459]
[1718941138892,0.77061001,3512.8,3512.4,0.793459]
[1718941139107,0.49309824,3513.2,3512.4,0.793459]
[1718941139317,0.7706055,3513.1,3512.4,0.793459]
[1718941139503,0.7706055,3513.0,3512.4,0.793459]
[1718941139817,0.7706055,3512.9,3512.5,0.6091964]
[1718941140131,0.49309824,3513.2,3512.4,0.793459]
[1718941140324,0.77062148,3513.1,3512.4,0.793459]
[1718941140533,0.77062148,3513.1,3512.5,2.439]
[1718941140702,0.77062148,3513.1,3512.5,5.439]
[1718941141021,0.77055583,3513.0,3512.6,0.9232459]
[1718941141228,0.77055583,3512.9,3512.6,3.0]
[1718941141434,0.77055583,3512.8,3512.6,3.0]
[1718941141633,0.49309067,3513.6,3512.5,5.439]
[1718941141810,0.77030032,3513.5,3512.5,5.439]
[1718941141997,1.26339099,3513.5,3512.5,5.439]
[1718941142192,0.77030032,3513.4,3512.5,5.439]
[1718941145893,0.77030032,3513.3,3512.5,5.439]
[1718941146224,2.20704715,3513.6,3512.6,0.6232459]
[1718941146225,0.77030032,3513.2,3512.6,0.6232459]
[1718941146411,0.49304715,3513.5,3512.6,3.6232459]
[1718941146608,0.77028644,3513.4,3512.6,3.6232459]
[1718941146811,0.77028644,3513.3,3512.6,3.6232459]
[1718941147028,0.77028644,3513.2,3512.6,3.6232459]
[1718941147195,0.49304715,3513.5,3512.7,0.68557049]
[1718941147401,0.77028318,3513.4,3512.7,0.68557049]
[1718941147740,0.77028318,3513.3,3512.7,0.68557049]
[1718941147916,0.49304715,3513.7,3512.7,0.68557049]
[1718941148234,0.49304715,3513.7,3512.6,3.0]
[1718941148235,0.77048859,3513.6,3512.8,0.61245705]
[1718941150237,0.49297739,3513.7,3512.9,2.2682]
[1718941150533,0.49297739,3514.0,3512.9,5.2682]
[1718941150741,0.77070187,3513.9,3513.0,0.58806571]
[1718941150942,0.77070187,3513.8,3513.0,3.58806571]
[1718941151235,0.77070187,3513.7,3513.0,3.58806571]
[1718941151401,0.49297739,3514.2,3513.1,0.64687228]
[1718941151602,0.77090121,3514.1,3513.1,0.64687228]
[1718941151800,0.77090121,3514.0,3513.1,0.64687228]
[1718941151999,0.77090121,3513.9,3513.1,0.64687228]
[1718941152205,0.77090121,3513.8,3513.2,0.59150723]
[1718941152513,0.77090121,3513.7,3513.2,0.59150723]
[1718941152719,0.49297173,3514.2,3513.2,0.59150723]
[1718941152944,0.77099081,3514.1,3513.2,0.59150723]
[1718941153307,0.43799081,3514.1,3513.2,0.59150723]
[1718941154236,0.93096254,3514.1,3513.2,0.59150723]
[1718941154437,0.49297173,3514.2,3513.2,0.59150723]
[1718941154637,0.49297173,3514.1,3513.2,0.59150723]
[1718941155014,0.47711144,3514.2,3513.2,0.59150723]
[1718941155205,2.20697595,3514.1,3513.0,3.0]
[1718941155809,2.20697595,3514.0,3513.0,3.0]
[1718941156010,2.4722,3513.9,3513.0,3.0]
[1718941156211,0.49304038,3513.8,3513.0,3.0]
[1718941156418,0.49304038,3513.7,3513.0,3.0]
[1718941156735,0.49304038,3513.6,3513.0,3.0]
[1718941156937,0.49304038,3513.8,3513.0,3.0]
[1718941157124,0.49304038,3513.7,3513.0,3.0]
[1718941157437,0.49304038,3513.8,3513.0,3.0]
[1718941157637,0.49304038,3513.7,3513.0,3.0]
[1718941157809,0.49304038,3513.6,3513.0,3.0]
[1718941158010,0.49304038,3513.8,3513.0,3.0]
[1718941158239,0.49304038,3513.7,3513.0,3.0]
[1718941158436,2.93853114,3513.9,3513.0,3.0]
[1718941158741,0.49305464,3513.8,3513.0,3.0]
[1718941158941,0.49305464,3513.7,3513.0,3.0]
[1718941159141,0.49305464,3513.6,3513.0,3.0]
[1718941159345,0.49305464,3513.8,3513.0,3.0]
[1718941159507,2.20705464,3513.7,3513.0,3.0]
[1718941159838,0.49305464,3513.6,3513.0,3.0]
[1718941160043,0.49305464,3513.5,3513.0,3.0]
[1718941160219,0.49305464,3513.4,3513.0,3.0]
[1718941160422,1.714,3513.7,3513.0,3.0]
[1718941160423,0.49305464,3513.6,3513.0,3.0]
[1718941160624,0.49305464,3513.5,3512.9,2.2682]
[1718941160820,0.49305464,3513.6,3512.9,2.2682]
[1718941161026,0.49305464,3513.5,3512.9,2.2682]
[1718941161222,0.49305464,3513.4,3512.9,2.2682]
[1718941161448,1.37005464,3513.6,3512.9,2.2682]
[1718941161615,1.97218773,3513.6,3512.9,2.2682]
[1718941161823,0.49304773,3513.5,3512.9,2.2682]
[1718941162128,0.49304893,3513.4,3512.9,2.2682]
[1718941162331,0.49304893,3513.5,3512.9,2.2682]
[1718941162522,2.4722,3513.9,3512.9,2.2682]
[1718941162523,0.49304893,3513.4,3512.9,2.2682]
[1718941162718,2.20704893,3513.7,3512.9,5.2682]
[1718941162926,0.49304893,3513.6,3512.9,5.2682]
[1718941163138,0.49304893,3513.5,3512.9,5.2682]
[1718941163347,0.49304893,3513.6,3512.9,5.2682]
[1718941163554,0.49304893,3513.5,3512.9,5.88272]
[1718941163758,0.49304893,3513.7,3513.0,0.877]
[1718941163907,0.49304893,3514.2,3513.3,2.2833]
[1718941164246,0.49304893,3514.1,3513.3,2.2833]
[1718941164420,0.49304893,3514.1,3513.3,5.2833]
[1718941164623,0.49295592,3514.0,3513.3,5.9669272]
[1718941165015,0.49295319,3514.1,3513.3,5.9669272]
[1718941165215,0.49295319,3514.2,3513.3,5.9669272]
[1718941165439,0.49295319,3514.1,3513.3,5.9669272]
[1718941165635,0.49295319,3514.2,3513.4,0.68439272]
[1718941166153,2.591,3514.3,3513.4,3.68439272]
[1718941166457,0.4929548,3514.2,3513.4,3.0]
[1718941166749,0.4929548,3514.2,3513.3,5.2833]
[1718941166956,0.4929501,3514.2,3513.3,5.2833]
[1718941167318,0.4929501,3514.4,3513.7,2.2833]
[1718941167518,0.4929501,3514.6,3513.7,5.59933]
[1718941167842,2.591,3514.7,3513.7,5.59933]
[1718941167843,0.4928942,3514.5,3513.7,5.59933]
[1718941168146,0.4928942,3514.6,3513.7,5.59933]
[1718941168449,0.4928942,3514.6,3513.8,0.647633]
[1718941168651,2.591,3514.7,3513.8,3.647633]
[1718941168822,0.49288617,3514.6,3513.8,3.647633]
[1718941169354,0.49288617,3514.6,3513.8,4.524633]
[1718941169516,0.49288617,3514.6,3513.9,0.7123963]
[1718941169849,2.20688617,3514.8,3513.9,0.7123963]
[1718941170044,1.99316205,3514.8,3513.9,0.7123963]
[1718941170244,0.49288617,3514.7,3513.9,0.7123963]
[1718941170444,1.714,3514.8,3513.9,0.7123963]
[1718941170743,2.20688617,3514.8,3513.9,0.7123963]
[1718941170946,0.49288255,3514.7,3513.9,0.7123963]
[1718941171111,2.20688255,3514.8,3513.9,0.7123963]
[1718941173349,0.40946671,3514.7,3513.9,0.7123963]
[1718941173562,1.77934926,3514.7,3513.9,0.7123963]
[1718941173766,0.40946671,3514.6,3513.9,0.7123963]
[1718941174064,0.40946671,3514.6,3514.0,0.78363593]
[1718941174360,0.40946671,3514.6,3514.1,2.3376]
[1718941174532,0.40946671,3514.6,3514.1,5.3376]
[1718941176660,0.40946671,3514.6,3514.1,2.3376]
[1718941178052,1.714,3514.5,3513.8,3.0]
[1718941178383,4.08718992,3514.4,3513.6,5.3376]
[1718941178668,0.90237405,3514.3,3513.6,5.3376]
[1718941178840,0.40946671,3514.2,3513.6,5.3376]
[1718941179811,0.40946671,3514.2,3513.6,5.30418]
[1718941180349,0.40946671,3514.1,3513.6,5.30418]
[1718941180652,0.40946671,3514.0,3513.6,5.30418]
[1718941180853,1.05030277,3514.3,3513.6,5.30418]
[1718941181056,0.40965286,3514.2,3513.6,5.30418]
[1718941184172,0.40965286,3514.1,3513.6,5.30418]
[1718941184373,0.40965286,3514.0,3513.6,5.30418]
[1718941184548,0.40965286,3513.9,3513.6,5.30418]
[1718941184744,0.49291921,3514.3,3513.6,5.30418]
[1718941184949,0.40961287,3514.2,3513.6,5.30418]
[1718941185184,0.40961287,3514.1,3513.6,5.30418]
[1718941185502,0.40961287,3514.0,3513.6,5.30418]
[1718941185654,0.40961287,3513.9,3513.6,5.30418]
[1718941185983,0.40961287,3513.8,3513.6,5.30418]
[1718941186199,0.49291921,3514.3,3513.6,5.30418]
[1718941186376,0.40979845,3514.2,3513.6,5.30418]
[1718941187585,0.40979845,3514.2,3513.7,2.98718]
[1718941187764,0.40979845,3514.2,3513.6,2.30418]
[1718941190572,0.90273388,3514.2,3513.6,2.30418]
[1718941190897,0.40979845,3514.1,3513.6,2.30418]
[1718941191187,0.40979845,3514.0,3513.6,2.30418]
[1718941191395,0.40979845,3513.9,3513.6,2.30418]
[1718941191596,0.40979845,3513.8,3513.6,2.30418]
[1718941191779,0.40979845,3513.7,3513.6,2.30418]
[1718941191965,0.68866926,3514.3,3513.6,2.30418]
[1718941191966,0.90272177,3514.2,3513.6,2.30418]
[1718941192173,0.40979845,3514.1,3513.6,2.30418]
[1718941192362,0.40979845,3514.0,3513.6,2.30418]
[1718941192565,0.40979845,3513.9,3513.6,2.30418]
[1718941192769,0.40979845,3513.8,3513.6,2.30418]
[1718941192975,0.40979845,3513.7,3513.6,2.30418]
[1718941193171,0.90271561,3514.1,3513.6,2.30418]
[1718941193392,0.40979845,3514.0,3513.6,2.30418]
[1718941193610,0.40979845,3513.9,3513.6,2.30418]
[1718941193891,0.40979845,3513.8,3513.6,2.30418]
[1718941194188,0.40979845,3513.7,3513.6,2.30418]
[1718941194392,0.90271873,3514.0,3513.6,2.30418]
[1718941194561,0.40979845,3513.9,3513.6,2.30418]
[1718941194755,0.40979845,3513.8,3513.6,2.30418]
[1718941194959,1.46454017,3514.4,3513.6,2.30418]
[1718941194960,0.40979845,3513.7,3513.6,2.30418]
[1718941195256,0.40979845,3513.8,3513.6,2.30418]
[1718941195462,0.40979845,3513.7,3513.6,2.30418]
[1718941195989,0.40979845,3513.7,3512.9,3.2466]
[1718941196178,0.40979845,3513.6,3513.0,3.0]
[1718941196386,0.49297376,3513.5,3512.9,3.2466]
[1718941196583,0.40979845,3513.4,3513.0,3.0]
[1718941196988,0.40979845,3513.3,3513.0,3.0]
[1718941197211,0.40979845,3513.2,3513.0,3.0]
[1718941197375,0.49297376,3513.5,3513.0,3.0]
[1718941197575,0.40977691,3513.4,3513.0,3.0]
[1718941197777,0.40977691,3513.3,3513.0,3.0]
[1718941198013,0.40977691,3513.2,3513.0,3.0]
[1718941198212,0.49297376,3513.7,3513.0,3.0]
[1718941198411,0.90256121,3513.6,3513.0,3.0]
[1718941198617,0.40958745,3513.5,3513.0,3.0]
[1718941198833,0.40958745,3513.4,3513.0,3.0]
[1718941198972,0.40958745,3513.3,3513.0,3.0]
[1718941199173,0.40958745,3513.2,3513.0,3.0]
[1718941199409,0.49300052,3513.6,3513.0,3.0]
[1718941199711,0.40956156,3513.5,3513.0,3.0]
[1718941200016,0.40956156,3513.4,3513.0,3.0]
[1718941200171,0.40956156,3513.3,3513.0,3.0]
[1718941200371,0.40956156,3513.2,3513.0,3.0]
[1718941200621,0.49300052,3513.7,3513.0,3.0]
[1718941200782,0.90256072,3513.6,3513.0,3.0]
[1718941200987,0.4095602,3513.5,3513.0,3.0]
[1718941201190,0.4095602,3513.4,3513.0,3.0]
[1718941201410,0.4095602,3513.3,3513.0,3.0]
[1718941201719,0.4095602,3513.2,3513.1,0.877]
[1718941201876,0.4095602,3513.6,3513.1,0.877]
[1718941202078,0.4095602,3513.5,3513.1,0.877]
[1718941202319,0.4095602,3513.4,3513.1,0.877]
[1718941202522,0.4095602,3513.3,3513.1,1.50166]
[1718941202673,0.4095602,3513.2,3513.1,1.50166]
[1718941203013,0.49299118,3514.0,3513.2,2.3424]
[1718941203227,0.40946055,3513.9,3513.2,3.0]
[1718941203527,0.49299118,3514.7,3513.9,2.326]
[1718941203723,2.4295,3515.1,3513.9,2.326]
[1718941203724,0.90235621,3514.6,3514.1,0.877]
[1718941203886,0.40936503,3514.5,3514.1,0.877]
[1718941204084,0.40936503,3514.4,3514.1,0.877]
[1718941204389,0.40936503,3514.3,3514.1,0.877]
[1718941204581,0.40936503,3514.2,3514.1,0.877]
[1718941205022,0.40936503,3514.7,3514.1,0.877]
[1718941205329,1.37905,3515.0,3514.1,0.877]
[1718941205330,0.40936503,3514.6,3514.1,0.877]
[1718941205627,0.40936503,3514.5,3514.1,0.877]
[1718941205925,0.40936503,3514.4,3514.1,0.877]
[1718941206122,0.40936503,3514.3,3514.1,0.877]
[1718941206334,0.41004403,3514.2,3514.1,0.877]
[1718941206687,0.41004403,3514.7,3514.1,0.877]
[1718941206919,0.41004403,3514.6,3514.1,0.877]
[1718941207123,0.07704403,3514.5,3514.1,0.877]
[1718941207440,0.877,3515.2,3514.3,0.877]
[1718941207606,0.49280429,3515.1,3514.3,0.877]
[1718941208433,1.36980429,3515.3,3514.4,2.2705]
[1718941208639,0.49280429,3515.2,3514.4,5.2705]
[1718941209629,1.61715429,3515.3,3514.4,5.2705]
[1718941210693,1.12435,3515.3,3514.4,5.2705]
[1718941210930,1.61714845,3515.3,3514.4,5.2705]
[1718941211177,1.12435,3515.3,3514.4,5.2705]
[1718941211351,1.61714784,3515.3,3514.4,5.2705]
[1718941211505,0.49279784,3515.3,3514.7,0.877]
[1718941211702,0.49279784,3515.6,3514.7,0.877]
[1718941211956,1.714,3515.7,3514.7,0.877]
[1718941211957,3.08379784,3515.7,3514.7,0.877]
[1718941212098,0.49279784,3515.6,3514.7,0.877]
[1718941213633,1.78854784,3515.7,3514.8,2.2705]
[1718941213818,0.91149348,3515.7,3514.8,5.2705]
[1718941213996,0.91149348,3515.7,3514.9,0.877]
[1718941214190,0.91149348,3515.7,3514.9,3.877]
[1718941215038,0.91149348,3515.7,3514.9,3.0]
[1718941215330,0.91149348,3515.7,3514.8,5.2705]
[1718941215540,0.49274348,3515.7,3514.8,5.58525]
[1718941216438,0.49274348,3515.7,3514.9,0.877]
[1718941216598,0.49274348,3515.7,3514.9,3.877]
[1718941216799,2.4735,3515.8,3514.9,3.877]
[1718941217000,0.49273257,3515.7,3514.9,3.877]
[1718941218233,2.4735,3515.8,3514.9,3.877]
[1718941218440,0.49273141,3515.7,3514.9,3.877]
[1718941218744,0.49273141,3515.7,3514.9,4.523225]
[1718941219109,0.49273141,3515.7,3515.1,0.877]
[1718941219316,0.77715351,3516.0,3515.1,0.877]
[1718941219515,0.49273141,3516.0,3515.1,0.877]
[1718941219727,0.87026455,3516.0,3515.1,0.877]
[1718941219982,0.37753314,3516.0,3515.1,0.877]
[1718941220254,0.87024692,3516.0,3515.1,0.877]
[1718941220422,0.877,3516.0,3515.1,0.877]
[1718941220633,1.36970814,3516.0,3515.1,0.877]
[1718941220968,0.877,3516.0,3515.1,0.877]
[1718941221118,1.36970399,3516.0,3514.9,3.646225]
[1718941221318,1.36970399,3516.0,3515.0,1.5001475]
[1718941222544,1.36970399,3516.0,3515.0,0.6231475]
[1718941222839,1.36970399,3516.0,3515.0,1.5001475]
[1718941223339,0.49269591,3516.0,3515.2,0.877]
[1718941223518,0.49269591,3516.0,3515.2,3.877]
[1718941223848,0.49269591,3516.0,3515.2,4.86943475]
[1718941226389,0.49268349,3516.0,3515.2,4.86943475]
[1718941227170,0.15519242,3515.9,3515.2,4.86943475]
[1718941227889,1.36968349,3516.3,3515.2,4.86943475]
[1718941228036,0.15519223,3516.2,3515.2,4.86943475]
[1718941228239,0.15519223,3516.2,3515.3,0.72936348]
[1718941228435,0.15519223,3516.2,3515.4,0.877]
[1718941229063,0.15519223,3516.1,3515.4,0.877]
[1718941229247,0.15519223,3516.0,3515.4,0.877]
[1718941229448,0.49266389,3516.3,3515.4,1.67929982]
[1718941229671,0.1551869,3516.2,3515.4,1.67929982]
[1718941230329,0.1551869,3516.2,3515.3,3.0]
[1718941230535,2.4415,3515.9,3515.2,3.0]
[1718941230857,0.64785842,3515.8,3515.1,5.4242]
[1718941231067,0.15520362,3515.7,3515.1,3.0]
[1718941231379,0.15520362,3515.7,3515.0,3.0]
[1718941232790,0.15520698,3515.6,3515.0,3.0]
[1718941232936,0.49270546,3515.8,3515.4,0.877]
[1718941233295,2.4415,3516.6,3515.0,4.36176]
[1718941233296,0.49270546,3516.5,3515.7,3.3688]
[1718941233439,0.64788589,3516.4,3515.8,3.0]
[1718941233642,0.15518043,3516.3,3515.8,3.0]
[1718941235385,0.15518043,3516.2,3515.8,3.0]
[1718941235605,0.4926102,3516.5,3515.9,0.877]
[1718941235757,0.1551778,3516.4,3515.9,0.877]
[1718941236278,0.4926102,3516.5,3516.1,0.877]
[1718941236498,0.4926102,3516.8,3516.1,0.877]
[1718941236667,0.15516398,3516.7,3516.1,0.877]
[1718941236868,0.4926102,3516.9,3516.1,0.877]
[1718941237074,0.15516013,3516.8,3516.1,0.877]
[1718941237294,0.15516013,3516.8,3516.1,1.328388]
[1718941238866,2.06879068,3516.7,3516.1,1.328388]
[1718941239064,2.5613605,3516.6,3516.1,1.328388]
[1718941239300,0.49256982,3516.5,3516.1,1.328388]
[1718941239605,2.62611502,3517.0,3516.1,0.877]
[1718941239606,2.06878651,3516.4,3516.1,0.877]
[1718941239901,0.49256821,3516.3,3516.1,0.877]
[1718941240205,0.49256821,3516.9,3516.1,0.877]
[1718941240377,2.22394472,3516.8,3516.2,0.151388]
[1718941240567,2.62611502,3517.0,3516.2,0.151388]
[1718941240568,2.56135423,3516.7,3516.2,0.151388]
[1718941240769,2.56135423,3516.6,3516.2,0.151388]
[1718941241003,2.56135423,3516.5,3516.2,0.151388]
[1718941241195,2.56135423,3516.4,3516.1,0.877]
[1718941241406,0.49256821,3516.3,3516.1,0.877]
[1718941241600,2.62611502,3517.0,3516.1,0.877]
[1718941241792,2.7164713,3516.9,3516.2,2.534488]
[1718941241996,2.561315,3516.8,3516.3,3.0]
[1718941242291,2.561315,3516.7,3516.3,3.0]
[1718941242471,2.561315,3516.6,3516.3,3.0]
[1718941242671,2.561315,3516.5,3516.3,3.0]
[1718941242867,2.56131298,3516.4,3516.3,3.0]
[1718941243175,0.49256057,3516.4,3516.3,3.56527102]
[1718941243498,0.28911502,3517.0,3516.3,3.56527102]
[1718941243804,2.22389087,3516.9,3516.3,3.56527102]
[1718941244007,2.71645144,3516.8,3516.3,3.56527102]
[1718941244303,2.56129698,3516.7,3516.4,0.6976759]
[1718941244600,0.877,3517.2,3516.4,0.6976759]
[1718941244601,2.56129698,3516.6,3516.4,0.6976759]
[1718941244821,0.877,3517.2,3516.3,3.0]
[1718941244982,2.71643653,3517.1,3516.3,3.0]
[1718941245307,2.71643653,3517.0,3516.3,3.0]
[1718941245483,0.877,3517.2,3516.3,3.0]
[1718941245484,2.71643653,3516.9,3516.3,3.0]
[1718941245804,2.71643653,3516.8,3516.4,0.6411488]
[1718941246009,2.71643653,3516.7,3516.4,0.6411488]
[1718941246177,2.71643653,3516.7,3516.5,0.61756368]
[1718941246178,2.06872746,3516.6,3516.5,0.61756368]
[1718941246369,2.56128161,3516.6,3516.5,0.61756368]
[1718941247797,2.4068,3517.3,3516.5,1.49456368]
[1718941247968,2.71625387,3517.2,3516.6,0.44945637]
[1718941248169,2.71625387,3517.1,3516.6,0.44945637]
[1718941248411,2.56110599,3517.0,3516.6,0.44945637]
[1718941248592,2.56110599,3516.9,3516.6,0.44945637]
[1718941248919,2.56110599,3516.8,3516.7,0.19440201]
[1718941250889,2.5610052,3516.8,3516.7,0.19440201]
[1718941254142,2.56104896,3516.8,3516.7,0.19440201]
[1718941254491,2.56104896,3516.8,3516.7,1.07140201]
[1718941254904,1.714,3517.9,3516.7,1.07140201]
[1718941254905,4.1356,3517.9,3516.7,3.46270201]
[1718941255096,2.71580528,3517.8,3517.0,0.877]
[1718941255296,2.71580528,3517.8,3516.8,3.21384221]
[1718941255297,2.71580528,3517.7,3516.8,3.21384221]
[1718941255640,3.59280528,3517.6,3516.8,3.21384221]
[1718941255840,2.71580528,3517.5,3516.9,0.71260006]
[1718941255995,2.71580528,3517.4,3516.9,0.71260006]
[1718941256302,2.71580528,3517.3,3516.9,0.71260006]
[1718941256625,2.71580528,3517.2,3516.9,0.71260006]
[1718941256831,2.71582352,3517.1,3516.9,0.71260006]
[1718941257030,2.06853314,3517.0,3516.8,0.21384221]
[1718941257197,2.3463,3517.4,3516.8,0.21384221]
[1718941257198,2.06853314,3516.9,3516.8,0.21384221]
[1718941257395,2.56104103,3516.9,3516.5,3.0]
[1718941257704,2.56104103,3516.9,3516.3,0.877]
[1718941257705,2.56104103,3516.8,3516.3,3.877]
[1718941257912,2.71619247,3516.7,3516.3,3.877]
[1718941258215,2.71619247,3516.6,3516.3,0.877]
[1718941258408,2.71619247,3516.5,3516.3,0.8247]
[1718941258614,2.56104103,3516.4,3516.3,0.8247]
[1718941258938,2.56104103,3516.4,3515.9,0.877]
[1718941259140,1.714,3517.1,3515.7,7.37]
[1718941259141,6.06990734,3516.3,3515.7,7.37]
[1718941259294,6.06990734,3516.3,3515.8,3.0]
[1718941259295,2.71620734,3516.2,3515.8,3.0]
[1718941259502,2.71620734,3516.1,3515.8,3.0]
[1718941259807,0.64783599,3516.0,3515.8,3.0]
[1718941260156,2.22437822,3515.9,3515.8,3.0]
[1718941260290,2.7170479,3515.9,3515.8,3.0]
[1718941260496,3.59416997,3515.9,3515.8,3.0]
[1718941260893,2.71716997,3515.9,3515.8,3.0]
[1718941261133,2.71723034,3515.9,3515.8,3.0]
[1718941262145,0.15516631,3515.9,3515.8,3.0]
[1718941262302,2.71724496,3515.9,3515.8,3.0]
[1718941264916,2.71724496,3515.9,3515.3,2.4385]
[1718941265110,2.71724496,3515.8,3515.4,1.28085]
[1718941265311,2.71710523,3515.7,3515.4,4.28085]
[1718941265514,2.56193892,3515.6,3515.4,4.28085]
[1718941265826,2.56193892,3515.6,3515.1,7.37]
[1718941265827,2.71712793,3515.5,3515.2,3.0]
[1718941266020,2.71712793,3515.4,3515.2,3.0]
[1718941266227,2.71712793,3515.3,3515.2,3.0]
[1718941268341,0.6479561,3515.3,3515.2,3.0]
[1718941268539,0.6479561,3515.3,3514.5,2.4385]
[1718941268540,0.15518901,3515.3,3514.5,9.8085]
[1718941268861,2.22481049,3515.2,3514.2,9.8265]
[1718941269030,5.06257758,3515.1,3514.2,7.37]
[1718941269230,2.71757758,3515.0,3514.2,7.37]
[1718941269432,2.71757758,3514.9,3513.9,7.37]
[1718941269633,3.22383534,3514.8,3513.9,7.37]
[1718941269954,2.71757758,3514.7,3514.0,3.0]
[1718941270185,2.71757758,3514.6,3514.0,3.0]
[1718941270452,2.56238857,3514.5,3514.0,3.0]
[1718941270641,0.55,3514.7,3514.0,3.0]
[1718941270642,2.56238857,3514.4,3514.0,3.0]
[1718941270819,2.56238857,3514.3,3513.6,7.37]
[1718941271020,2.06962148,3514.2,3513.7,5.21065]
[1718941271221,0.55,3514.7,3513.7,5.21065]
[1718941271432,2.22527184,3514.6,3513.7,5.21065]
[1718941271657,1.04288406,3514.7,3513.7,5.21065]
[1718941271658,0.55,3514.7,3513.7,5.21065]
[1718941271945,2.22522558,3514.6,3513.7,5.21065]
[1718941272136,2.56299591,3514.5,3513.7,5.21065]
[1718941272335,2.07011208,3514.4,3513.7,5.21065]
[1718941272540,2.07011208,3514.3,3513.7,5.04065]
[1718941272736,2.07011208,3514.2,3513.7,3.0]
[1718941272930,2.07011208,3514.1,3513.7,3.0]
[1718941273173,0.273726,3514.7,3513.7,3.0]
[1718941273466,3.78416008,3514.6,3513.7,3.0]
[1718941273667,5.0742133,3514.5,3513.7,3.0]
[1718941273979,4.02947649,3514.4,3513.6,7.37]
[1718941274271,2.71828256,3514.3,3513.6,7.37]
[1718941274472,3.02519393,3514.4,3513.3,7.37]
[1718941274651,2.71844086,3514.3,3513.3,7.37]
[1718941274850,3.26844086,3514.2,3513.3,7.37]
[1718941275163,2.56339332,3514.1,3513.3,7.37]
[1718941275348,2.07043307,3514.0,3513.4,3.0]
[1718941275546,2.264,3514.4,3513.4,3.0]
[1718941275751,3.02538229,3514.3,3513.4,3.0]
[1718941275947,2.264,3514.4,3513.4,3.0]
[1718941275948,2.07041608,3514.2,3513.4,3.0]
[1718941276161,2.3561,3514.5,3513.4,3.0]
[1718941276347,2.07026555,3514.4,3513.4,3.0]
[1718941276942,1.714,3514.9,3513.5,2.4249]
[1718941277266,2.62001543,3514.8,3513.5,2.4249]
[1718941277469,3.78404952,3514.7,3513.5,2.4249]
[1718941277653,3.78404952,3514.7,3513.4,3.0]
[1718941277654,1.714,3514.3,3513.4,3.0]
[1718941277976,2.07028159,3514.2,3513.4,3.0]
[1718941278153,2.62028159,3514.2,3513.4,3.0]
[1718941278355,0.55,3514.2,3513.4,3.0]
[1718941279061,1.01476,3514.2,3513.4,3.0]
[1718941279464,0.46476,3514.2,3513.4,3.0]
[1718941279640,2.3836,3514.4,3513.4,3.0]
[1718941279841,2.62036309,3514.3,3513.4,3.0]